fUST/lending_fUST_20250619
["ID","MTS","AMOUNT","RATE_DAILY","PERIOD"]
[366506702,1750294241060,-532.62,0.00023013,6]
[366506703,1750294241070,-460.0,0.00023013,6]
[366506704,1750294241079,-2187.05,0.00023013,6]
[366506705,1750294241088,-300.0,0.00023013,2]
[366506706,1750294241098,-651.69,0.00023013,6]
[366506707,1750294241107,-464.65,0.00023013,6]
[366506708,1750294241116,-460.0,0.00023013,6]
[366506709,1750294241126,-460.0,0.00023013,6]
[366506710,1750294241136,-1163.67,0.00023013,6]
[366506711,1750294241149,-1832.72,0.00023013,6]
[366506712,1750294241158,-174.00284132,0.00023098,2]
[366506713,1750294241169,-160.0,0.00023133,2]
[366506714,1750294241178,-396.09821929,0.00023141,8]
[366506715,1750294241191,-359.71654539,0.00023223,2]
[366506716,1750294241200,-168.0,0.00023236,2]
[366506717,1750294241210,-728.0181528,0.0002326,2]
[366506718,1750294241222,-365.5483814,0.0002326,2]
[366506719,1750294241232,-365.5483814,0.0002326,2]
[366506720,1750294241241,-396.09821929,0.00023279,8]
[366506721,1750294241251,-460.0,0.00023287,6]
[366506722,1750294241261,-460.0,0.00023287,6]
[366506723,1750294241270,-487.63,0.00023287,6]
[366506724,1750294241279,-460.0,0.00023287,6]
[366506725,1750294241289,-460.0,0.00023287,6]
[366506726,1750294241299,-460.0,0.00023287,6]
[366506727,1750294241308,-1195.1,0.00023287,6]
[366506728,1750294241317,-477.56,0.00023287,6]
[366506729,1750294241327,-1493.45,0.00023287,6]
[366506730,1750294241336,-2800.11,0.00023287,6]
[366506731,1750294241345,-2327.47,0.00023287,6]
[366506732,1750294241355,-2600.0,0.00023287,6]
[366506733,1750294241364,-460.0,0.00023287,6]
[366506734,1750294241373,-622.12,0.00023287,6]
[366506735,1750294241383,-824.15,0.00023287,6]
[366506736,1750294241392,-2580.33,0.00023287,6]
[366506737,1750294241401,-958.81,0.00023287,6]
[366506738,1750294241410,-460.0,0.00023287,6]
[366506739,1750294241420,-460.0,0.00023287,6]
[366506740,1750294241429,-462.98,0.00023287,6]
[366506741,1750294241438,-460.0,0.00023287,6]
[366506742,1750294241448,-541.8,0.00023287,6]
[366506743,1750294241458,-460.0,0.00023287,6]
[366506744,1750294241467,-460.0,0.00023287,6]
[366506745,1750294241476,-460.0,0.00023287,6]
[366506746,1750294241486,-460.0,0.00023287,6]
[366506747,1750294241496,-460.0,0.00023287,6]
[366506748,1750294241505,-1890.95,0.00023287,6]
[366506749,1750294241515,-460.0,0.00023287,6]
[366506750,1750294241524,-547.09,0.00023287,6]
[366506751,1750294241534,-864.68,0.00023287,6]
[366506752,1750294241543,-998.38,0.00023287,6]
[366506753,1750294241553,-784.98,0.00023287,6]
[366506754,1750294241563,-735.27,0.00023287,6]
[366506755,1750294241572,-460.0,0.00023287,6]
[366506756,1750294241582,-460.0,0.00023287,6]
[366506757,1750294241591,-475.69427296,0.00023287,6]
[366506758,1750294241601,-2787.52,0.00023287,6]
[366506759,1750294241610,-540.4,0.00023287,6]
[366506760,1750294241620,-532.62,0.00023287,6]
[366506761,1750294241629,-460.0,0.00023287,6]
[366506762,1750294241639,-2187.05,0.00023287,6]
[366506763,1750294241649,-300.0,0.00023287,2]
[366506764,1750294241658,-651.69,0.00023287,6]
[366506765,1750294241668,-464.65,0.00023287,6]
[366506766,1750294241677,-460.0,0.00023287,6]
[366506767,1750294241687,-460.0,0.00023287,6]
[366506768,1750294241696,-1163.67,0.00023287,6]
[366506769,1750294241706,-1832.72,0.00023287,6]
[366506770,1750294241715,-61786.16,0.000233,7]
[366506771,1750294241724,-168.0,0.00023321,2]
[366506772,1750294241734,-359.71654539,0.00023364,2]
[366506773,1750294241742,-396.09821929,0.00023417,9]
[366506774,1750294241752,-1966.017375,0.00023431,3]
[366506775,1750294241763,-420.7207632,0.00023507,2]
[366506776,1750294241775,-1148.4306086,0.00023507,2]
[366506777,1750294241783,-158.9908236,0.00023507,2]
[366506778,1750294241792,-177.1504183,0.00023507,2]
[366506779,1750294241800,-153.0,0.00023507,2]
[366506780,1750294241808,-177.1504183,0.00023507,2]
[366506781,1750294241818,-158.9908236,0.00023507,2]
[366506782,1750294241827,-153.0,0.00023507,2]
[366506783,1750294241838,-158.9908236,0.00023507,2]
[366506784,1750294241847,-177.1504183,0.00023507,2]
[366506785,1750294241857,-177.1504183,0.00023507,2]
[366506786,1750294241866,-153.0,0.00023507,2]
[366506787,1750294241875,-177.1504183,0.00023507,2]
[366506788,1750294241885,-171.1477531,0.00023507,2]
[366506789,1750294241894,-153.0,0.00023507,2]
[366506790,1750294241904,-583.29,0.00023511,2]
[366506791,1750294241913,-168.0,0.00023532,2]
[366506792,1750294241923,-1148.4306086,0.00023534,2]
[366506793,1750294241932,-177.4096289,0.00023534,2]
[366506794,1750294241943,-153.0,0.00023534,2]
[366506795,1750294241953,-574.2153043,0.00023534,2]
[366506796,1750294241963,-158.9908236,0.00023534,2]
[366506797,1750294241973,-153.0,0.00023534,2]
[366506798,1750294241981,-158.9908236,0.00023534,2]
[366506799,1750294241987,-153.0,0.00023534,2]
[366506800,1750294241994,-158.9908236,0.00023534,2]
[366506801,1750294242001,-317.862232,0.00023534,2]
[366506802,1750294242010,-210.18673733,0.0002354,2]
[366506803,1750294242020,-800.0,0.00023553,2]
[366506804,1750294242029,-396.09821929,0.00023555,9]
[366506805,1750294242039,-215.0738,0.00023557,2]
[366506806,1750294242049,-460.0,0.00023561,6]
[366506807,1750294242060,-460.0,0.00023561,6]
[366506808,1750294242069,-487.63,0.00023561,6]
[366506809,1750294242079,-460.0,0.00023561,6]
[366506810,1750294242089,-460.0,0.00023561,6]
[366506811,1750294242098,-460.0,0.00023561,6]
[366506812,1750294242108,-1195.1,0.00023561,6]
[366506813,1750294242117,-477.56,0.00023561,6]
[366506814,1750294242126,-1493.45,0.00023561,6]
[366506815,1750294242136,-2800.11,0.00023561,6]
[366506816,1750294242150,-2327.47,0.00023561,6]
[366506817,1750294242159,-2600.0,0.00023561,6]
[366506818,1750294242168,-460.0,0.00023561,6]
[366506819,1750294242178,-622.12,0.00023561,6]
[366506820,1750294242187,-824.15,0.00023561,6]
[366506821,1750294242196,-2580.33,0.00023561,6]
[366506822,1750294242206,-958.81,0.00023561,6]
[366506823,1750294242215,-460.0,0.00023561,6]
[366506824,1750294242224,-460.0,0.00023561,6]
[366506825,1750294242234,-462.98,0.00023561,6]
[366506826,1750294242243,-460.0,0.00023561,6]
[366506827,1750294242253,-541.8,0.00023561,6]
[366506828,1750294242263,-460.0,0.00023561,6]
[366506829,1750294242272,-460.0,0.00023561,6]
[366506830,1750294242281,-460.0,0.00023561,6]
[366506831,1750294242290,-259.99,0.00023561,6]
[366506832,1750294242300,-460.0,0.00023561,6]
[366506833,1750294242309,-1890.95,0.00023561,6]
[366506834,1750294242319,-460.0,0.00023561,6]
[366506835,1750294242328,-547.09,0.00023561,6]
[366506836,1750294242337,-864.68,0.00023561,6]
[366506837,1750294242346,-998.38,0.00023561,6]
[366506838,1750294242355,-784.98,0.00023561,6]
[366506839,1750294242365,-735.27,0.00023561,6]
[366506840,1750294242375,-460.0,0.00023561,6]
[366506841,1750294242384,-460.0,0.00023561,6]
[366506842,1750294242394,-2787.52,0.00023561,6]
[366506843,1750294242403,-540.4,0.00023561,6]
[366506844,1750294242412,-532.62,0.00023561,6]
[366506845,1750294242422,-460.0,0.00023561,6]
[366506846,1750294242431,-2187.05,0.00023561,6]
[366506847,1750294242440,-300.0,0.00023561,2]
[366506848,1750294242450,-651.69,0.00023561,6]
[366506849,1750294242460,-464.65,0.00023561,6]
[366506850,1750294242469,-460.0,0.00023561,6]
[366506851,1750294242479,-460.0,0.00023561,6]
[366506852,1750294242488,-1163.67,0.00023561,6]
[366506853,1750294242498,-1832.72,0.00023561,6]
[366506854,1750294242507,-964.0,0.00023594,2]
[366506855,1750294242517,-653.0,0.00023594,2]
[366506856,1750294242527,-2160.0,0.00023594,2]
[366506857,1750294242536,-151.0,0.000236,9]
[366506858,1750294242546,-180.0,0.000236,4]
[366506859,1750294242556,-180.0,0.000236,4]
[366506860,1750294242566,-800.0,0.0002365,2]
[366506861,1750294242575,-800.0,0.0002366,2]
[366506862,1750294242585,-500.0,0.00023673,2]
[366506863,1750294242596,-500.0,0.00023673,2]
[366506864,1750294242605,-500.0,0.00023673,2]
[366506865,1750294242615,-299.56773809,0.00023673,2]
[366506866,1750294242624,-124947.93190107,0.00023691,2]
[366506867,1750294242633,-396.09821929,0.00023693,9]
[366506868,1750294242643,-500.0,0.00023724,6]
[366506869,1750294242653,-359.7165454,0.00023743,2]
[366506870,1750294242663,-500.0,0.00023751,6]
[366506871,1750294242673,-151.0,0.00023752,6]
[366506872,1750294242682,-151.0,0.00023752,6]
[366506873,1750294242691,-500.0,0.00023752,6]
[366506874,1750294242701,-500.0,0.00023752,6]
[366506875,1750294242711,-151.0,0.00023752,6]
[366506876,1750294242720,-468.0,0.00023752,6]
[366506877,1750294242730,-500.0,0.00023752,6]
[366506878,1750294242740,-151.0,0.00023752,6]
[366506879,1750294242751,-151.0,0.00023752,6]
[366506880,1750294242762,-156.71109524,0.00023752,6]
[366506881,1750294242772,-500.0,0.00023752,6]
[366506882,1750294242782,-151.0,0.00023752,6]
[366506883,1750294242791,-151.0,0.00023752,6]
[366506884,1750294242801,-500.0,0.00023752,6]
[366506885,1750294242811,-987.778695,0.00023753,3]
[366506886,1750294242821,-500.0,0.00023779,6]
[366506887,1750294242830,-199.0,0.00023779,6]
[366506888,1750294242839,-500.0,0.00023779,6]
[366506889,1750294242849,-500.0,0.00023779,6]
[366506890,1750294242859,-198.0,0.00023779,6]
[366506891,1750294242868,-468.0,0.00023779,6]
[366506892,1750294242878,-517.41362661,0.00023779,6]
[366506893,1750294242887,-151.0,0.00023779,6]
[366506894,1750294242897,-198.0,0.00023779,6]
[366506895,1750294242906,-500.0,0.00023779,6]
[366506896,1750294242915,-151.0,0.00023779,6]
[366506897,1750294242925,-151.0,0.00023779,6]
[366506898,1750294242934,-500.0,0.00023779,6]
[366506899,1750294242944,-151.0,0.000238,5]
[366506900,1750294242961,-151.0,0.000238,9]
[366506901,1750294242981,-2178.08,0.000238,2]
[366506902,1750294242991,-501.31774589,0.00023806,6]
[366506903,1750294243000,-500.0,0.00023807,6]
[366506904,1750294243009,-500.0,0.00023807,6]
[366506905,1750294243019,-468.0,0.00023807,6]
[366506906,1750294243029,-208.6319519,0.00023807,6]
[366506907,1750294243038,-500.0,0.00023807,6]
[366506909,1750294243047,-212.69819409,0.00023807,6]
[366506910,1750294243057,-198.0,0.00023807,6]
[366506911,1750294243067,-500.0,0.00023807,6]
[366506912,1750294243077,-420.0,0.00023817,2]
[366506913,1750294243086,-174.00284132,0.0002383,2]
[366506914,1750294243096,-396.09821929,0.00023831,10]
[366506916,1750294243106,-500.0,0.00023834,6]
[366506917,1750294243115,-500.0,0.00023834,6]
[366506918,1750294243125,-468.0,0.00023834,6]
[366506919,1750294243135,-500.0,0.00023834,6]
[366506920,1750294243147,-500.0,0.00023834,6]
[366506921,1750294243156,-460.0,0.00023835,6]
[366506922,1750294243166,-460.0,0.00023835,6]
[366506923,1750294243176,-487.63,0.00023835,6]
[366506924,1750294243186,-460.0,0.00023835,6]
[366506925,1750294243196,-460.0,0.00023835,6]
[366506926,1750294243205,-460.0,0.00023835,6]
[366506927,1750294243215,-1195.1,0.00023835,6]
[366506928,1750294243227,-477.56,0.00023835,6]
[366506929,1750294243236,-1493.45,0.00023835,6]
[366506930,1750294243246,-2800.11,0.00023835,6]
[366506931,1750294243255,-2327.47,0.00023835,6]
[366506933,1750294243265,-2600.0,0.00023835,6]
[366506935,1750294243275,-460.0,0.00023835,6]
[366506937,1750294243285,-622.12,0.00023835,6]
[366506939,1750294243296,-824.15,0.00023835,6]
[366506940,1750294243305,-2580.33,0.00023835,6]
[366506941,1750294243320,-958.81,0.00023835,6]
[366506942,1750294243330,-460.0,0.00023835,6]
[366506943,1750294243340,-460.0,0.00023835,6]
[366506944,1750294243349,-462.98,0.00023835,6]
[366506945,1750294243468,-460.0,0.00023835,6]
[366506946,1750294243478,-541.8,0.00023835,6]
[366506947,1750294243488,-460.0,0.00023835,6]
[366506948,1750294243498,-460.0,0.00023835,6]
[366506949,1750294243508,-460.0,0.00023835,6]
[366506950,1750294243517,-460.0,0.00023835,6]
[366506952,1750294243527,-1890.95,0.00023835,6]
[366506953,1750294243537,-460.0,0.00023835,6]
[366506955,1750294243547,-547.09,0.00023835,6]
[366506956,1750294243557,-864.68,0.00023835,6]
[366506957,1750294243568,-998.38,0.00023835,6]
[366506958,1750294243578,-784.98,0.00023835,6]
[366506959,1750294243588,-735.27,0.00023835,6]
[366506960,1750294243597,-460.0,0.00023835,6]
[366506961,1750294243607,-460.0,0.00023835,6]
[366506962,1750294243616,-2787.52,0.00023835,6]
[366506963,1750294243628,-540.4,0.00023835,6]
[366506964,1750294243638,-532.62,0.00023835,6]
[366506965,1750294243648,-460.0,0.00023835,6]
[366506966,1750294243658,-2187.05,0.00023835,6]
[366506967,1750294243669,-300.0,0.00023835,2]
[366506968,1750294243679,-651.69,0.00023835,6]
[366506969,1750294243689,-464.65,0.00023835,6]
[366506970,1750294243698,-460.0,0.00023835,6]
[366506971,1750294243708,-460.0,0.00023835,6]
[366506972,1750294243718,-1163.67,0.00023835,6]
[366506973,1750294243729,-1832.72,0.00023835,6]
[366506974,1750294243738,-500.0,0.00023862,6]
[366506975,1750294243748,-198.383411,0.00023862,6]
[366506976,1750294243758,-468.0,0.00023862,6]
[366506977,1750294243767,-500.0,0.00023862,6]
[366506978,1750294243778,-500.0,0.00023862,6]
[366506979,1750294243787,-500.0,0.00023865,2]
[366506980,1750294243797,-1469.120589,0.0002388,5]
[366506981,1750294243807,-500.0,0.00023881,2]
[366506982,1750294243818,-500.0,0.00023889,6]
[366506983,1750294243829,-468.0,0.00023889,6]
[366506984,1750294243839,-500.0,0.00023889,6]
[366506985,1750294243848,-500.0,0.00023889,6]
[366506986,1750294243857,-163.58333334,0.00023896,2]
[366506987,1750294243867,-564724.62056957,0.00023899,4]
[366506988,1750294243914,-89135.56167359,0.00023899,4]
[366506989,1750294244921,-3480.83790388,0.00023899,4]
[366506990,1750294244933,-847.21780698,0.00023899,4]
[366506991,1750294245016,-460.0,0.00022191,6]
[366506992,1750294245025,-460.0,0.00022465,6]
[366506993,1750294245034,-460.0,0.00022739,6]
[366506994,1750294245043,-460.0,0.00023013,6]
[366506995,1750294245052,-460.0,0.00023287,6]
[366506996,1750294245062,-460.0,0.00023561,6]
[366506997,1750294245071,-460.0,0.00023835,6]
[366506998,1750294245080,-59844.88948662,0.00023899,4]
[366507034,1750294246565,-460.0,0.00021917,6]
[366507035,1750294246575,-387.602625,0.00022191,6]
[366507036,1750294246618,-72.397375,0.00022191,6]
[366507037,1750294246628,-460.0,0.00022465,6]
[366507038,1750294246637,-460.0,0.00022739,6]
[366507039,1750294246647,-460.0,0.00023013,6]
[366507040,1750294246657,-365.5483814,0.0002326,2]
[366507041,1750294246666,-460.0,0.00023287,6]
[366507042,1750294246675,-460.0,0.00023561,6]
[366507043,1750294246685,-460.0,0.00023835,6]
[366507044,1750294246695,-23055.36967782,0.00023899,4]
[366507045,1750294246707,-31830.82572825,0.00023899,4]
[366507046,1750294246718,-25378.493,0.00023899,4]
[366507047,1750294246729,-7857.41,0.00023899,4]
[366507048,1750294246740,-13449.43631778,0.00023899,4]
[366507049,1750294304685,150.0,0.00018635,2]
[366507051,1750294379961,150.0,0.00018289,2]
[366507052,1750294461581,150.0,0.00018303,2]
[366507053,1750294537661,150.0,0.00018368,2]
[366507054,1750294612034,150.0,0.0001829,2]
[366507055,1750294686128,150.0,0.00018316,2]
[366507056,1750294710795,200.0,0.00024152,120]
[366507058,1750294718223,163.421253,0.00013699,2]
[366507059,1750294759000,150.0,0.00018365,2]
[366507061,1750294832635,150.0,0.00018281,2]
[366507062,1750294908737,150.0,0.00018286,2]
[366507064,1750294981897,150.0,0.00018362,2]
[366507066,1750295054969,150.0,0.0001831,2]
[366507070,1750295127629,150.0,0.00018285,2]
[366507072,1750295156136,-150.0,0.0001916,2]
[366507073,1750295156158,-150.0,0.00020022,2]
[366507074,1750295156178,-24900.0,0.00020859,2]
[366507075,1750295156200,-167.7,0.00020897,2]
[366507076,1750295156219,-160.0,0.00021724,3]
[366507077,1750295156242,-209.63,0.00021768,2]
[366507078,1750295156262,-160.0,0.00021916,2]
[366507079,1750295156282,-169.593,0.00021916,2]
[366507080,1750295156302,-260.08616276,0.00021917,6]
[366507081,1750295156322,-204.09604239,0.00021917,6]
[366507082,1750295156342,-390.0,0.00021917,6]
[366507083,1750295156363,-460.0,0.00021917,6]
[366507084,1750295156384,-460.0,0.00021917,6]
[366507085,1750295156404,-230.0,0.00021917,6]
[366507086,1750295156424,-310.0,0.00021917,6]
[366507087,1750295156445,-460.0,0.00021917,6]
[366507088,1750295156467,-609.18929194,0.00021917,6]
[366507089,1750295156488,-460.0,0.00021917,6]
[366507090,1750295156509,-460.0,0.00021917,6]
[366507091,1750295156532,-460.0,0.00021917,6]
[366507092,1750295156552,-460.0,0.00021917,6]
[366507093,1750295156572,-460.0,0.00021917,6]
[366507094,1750295156592,-460.0,0.00021917,6]
[366507095,1750295156615,-460.0,0.00021917,6]
[366507096,1750295156634,-460.0,0.00021917,6]
[366507097,1750295156655,-460.0,0.00021917,6]
[366507098,1750295156675,-460.0,0.00021917,6]
[366507099,1750295156694,-460.0,0.00021917,6]
[366507100,1750295156714,-460.0,0.00021917,6]
[366507101,1750295156733,-460.0,0.00021917,6]
[366507102,1750295156753,-460.0,0.00021917,6]
[366507103,1750295156773,-460.0,0.00021917,6]
[366507104,1750295156793,-460.0,0.00021917,6]
[366507105,1750295156814,-460.0,0.00021917,6]
[366507106,1750295156834,-402.68959887,0.00021917,6]
[366507107,1750295156858,-517.39,0.00021917,6]
[366507108,1750295156880,-460.0,0.00021917,6]
[366507109,1750295156900,-460.0,0.00021917,6]
[366507110,1750295156920,-460.0,0.00021917,6]
[366507111,1750295156941,-460.0,0.00021917,6]
[366507112,1750295156961,-410.0,0.00021917,6]
[366507113,1750295156981,-460.0,0.00021917,6]
[366507114,1750295157005,-1617.11,0.00021917,6]
[366507115,1750295157025,-460.0,0.00021917,6]
[366507116,1750295157045,-460.0,0.00021917,6]
[366507117,1750295157066,-2409.78,0.00021917,6]
[366507118,1750295157087,-502.89,0.00021917,6]
[366507119,1750295157107,-460.0,0.00021917,6]
[366507120,1750295157129,-2021.65,0.00021917,6]
[366507121,1750295157151,-2105.31,0.00021917,6]
[366507122,1750295157171,-460.0,0.00021917,6]
[366507123,1750295157192,-1131.14,0.00021917,6]
[366507124,1750295157213,-460.0,0.00021917,6]
[366507125,1750295157232,-460.0,0.00021917,6]
[366507126,1750295157253,-460.0,0.00021917,6]
[366507127,1750295157274,-547.34,0.00021917,6]
[366507128,1750295157296,-2488.37,0.00021917,6]
[366507129,1750295157317,-460.0,0.00021917,6]
[366507130,1750295157337,-460.0,0.00021917,6]
[366507131,1750295157357,-460.0,0.00021917,6]
[366507132,1750295157381,-460.0,0.00021917,6]
[366507133,1750295157402,-1351.06,0.00021917,6]
[366507134,1750295157422,-2300.19,0.00021917,6]
[366507135,1750295157443,-400.0,0.00021917,6]
[366507136,1750295157468,-2044.47,0.00021917,6]
[366507137,1750295157487,-460.0,0.00021917,6]
[366507138,1750295157508,-460.49,0.00021917,6]
[366507139,1750295157529,-952.85,0.00021917,6]
[366507140,1750295157552,-792.2,0.00021917,6]
[366507141,1750295157571,-460.0,0.00021917,6]
[366507142,1750295157591,-524.37,0.00021917,6]
[366507143,1750295157612,-856.43,0.00021917,6]
[366507144,1750295157631,-460.0,0.00021917,6]
[366507145,1750295157651,-460.0,0.00021917,6]
[366507146,1750295157670,-460.0,0.00021917,6]
[366507147,1750295157691,-460.0,0.00021917,6]
[366507148,1750295157710,-460.0,0.00021917,6]
[366507149,1750295157731,-460.0,0.00021917,6]
[366507150,1750295157750,-460.0,0.00021917,6]
[366507151,1750295157770,-370.0,0.00021917,6]
[366507152,1750295157790,-460.0,0.00021917,6]
[366507153,1750295157810,-300.0,0.00021917,2]
[366507154,1750295157830,-460.0,0.00021917,6]
[366507155,1750295157853,-830.69,0.00021917,6]
[366507156,1750295157874,-601.41,0.00021917,6]
[366507157,1750295157897,-460.0,0.00021917,6]
[366507158,1750295157916,-460.0,0.00021917,6]
[366507159,1750295157937,-460.0,0.00021917,6]
[366507160,1750295157958,-460.0,0.00021917,6]
[366507161,1750295157978,-1051.41,0.00021917,6]
[366507162,1750295157999,-847.49,0.00021917,6]
[366507163,1750295158019,-460.0,0.00021917,6]
[366507164,1750295158038,-450.0,0.00021917,6]
[366507165,1750295158058,-460.0,0.00021917,6]
[366507166,1750295158077,-460.0,0.00021917,6]
[366507167,1750295158098,-460.0,0.00021917,6]
[366507168,1750295158118,-460.0,0.00021917,6]
[366507169,1750295158139,-460.0,0.00021917,6]
[366507170,1750295158159,-460.0,0.00021917,6]
[366507171,1750295158178,-563.94,0.00021917,6]
[366507172,1750295158197,-395.13334372,0.0002197,2]
[366507173,1750295158217,-160.0,0.0002203,4]
[366507174,1750295158237,-250.0,0.00022036,2]
[366507175,1750295158258,-168.0,0.00022055,2]
[366507176,1750295158278,-213.43818883,0.00022117,2]
[366507177,1750295158298,-460.0,0.0002219,6]
[366507178,1750295158318,-460.0,0.0002219,6]
[366507179,1750295158339,-460.0,0.0002219,6]
[366507180,1750295158359,-460.0,0.0002219,6]
[366507181,1750295158381,-663.65,0.0002219,6]
[366507182,1750295158401,-460.0,0.0002219,6]
[366507183,1750295158421,-188.30400155,0.0002219,2]
[366507184,1750295158442,-1815.73,0.0002219,6]
[366507185,1750295158466,-340.0,0.0002219,6]
[366507186,1750295158490,-760.03,0.0002219,6]
[366507187,1750295158511,-460.0,0.0002219,6]
[366507188,1750295158659,-224.11483354,0.00022191,6]
[366507189,1750295158681,-460.0,0.00022191,6]
[366507190,1750295158702,-460.0,0.00022191,6]
[366507191,1750295158722,-460.0,0.00022191,6]
[366507192,1750295158744,-460.0,0.00022191,6]
[366507193,1750295158764,-460.0,0.00022191,6]
[366507194,1750295158785,-460.0,0.00022191,6]
[366507195,1750295158806,-460.0,0.00022191,6]
[366507196,1750295158826,-460.0,0.00022191,6]
[366507197,1750295158846,-460.0,0.00022191,6]
[366507198,1750295158868,-460.0,0.00022191,6]
[366507199,1750295158889,-460.0,0.00022191,6]
[366507200,1750295158909,-517.39,0.00022191,6]
[366507201,1750295158931,-460.0,0.00022191,6]
[366507202,1750295158953,-1617.11,0.00022191,6]
[366507203,1750295158973,-460.0,0.00022191,6]
[366507204,1750295158993,-460.0,0.00022191,6]
[366507205,1750295159015,-1262.43486951,0.00022191,6]
[366507207,1750295197774,150.0,0.00018288,2]
[366507208,1750295228167,-150.0,0.00019158,2]
[366507209,1750295228190,-150.0,0.00020029,2]
[366507210,1750295228210,-300.0,0.00020858,2]
[366507211,1750295228231,-150.0,0.000209,2]
[366507212,1750295228253,-176.07,0.00021771,2]
[366507213,1750295228274,-300.0,0.00021916,2]
[366507214,1750295228295,-460.0,0.00021917,6]
[366507215,1750295228314,-460.0,0.00021917,6]
[366507216,1750295228335,-460.0,0.00021917,6]
[366507217,1750295228356,-504.13,0.00021917,6]
[366507218,1750295228378,-1133.8,0.00021917,6]
[366507219,1750295228398,-455.28004367,0.00021917,6]
[366507220,1750295228419,-2372.92,0.00021917,6]
[366507221,1750295228439,-460.0,0.00021917,6]
[366507222,1750295228461,-460.0,0.00021917,6]
[366507223,1750295228483,-460.0,0.00021917,6]
[366507224,1750295228504,-2028.54,0.00021917,6]
[366507225,1750295228527,-1635.07,0.00021917,6]
[366507226,1750295228550,-460.0,0.00021917,6]
[366507227,1750295228571,-460.0,0.00021917,6]
[366507228,1750295228592,-2651.6,0.00021917,6]
[366507229,1750295228614,-2125.11,0.00021917,6]
[366507230,1750295228634,-400.0,0.00021917,6]
[366507231,1750295228654,-460.0,0.00021917,6]
[366507232,1750295228674,-182.0157145,0.00022091,2]
[366507233,1750295228696,-190.0,0.00022191,6]
[366507234,1750295228716,-460.0,0.00022191,6]
[366507235,1750295228738,-547.34,0.00022191,6]
[366507236,1750295228760,-1910.58443683,0.00022191,6]
[366507237,1750295230101,-581.30712427,0.00021917,6]
[366507240,1750295270158,150.0,0.00018288,2]
[366507243,1750295340793,150.0,0.00018548,2]
[366507245,1750295372148,-150.0,0.00019432,2]
[366507246,1750295372170,-23.35338357,0.00020315,2]
[366507248,1750295412398,150.0,0.00018371,2]
[366507276,1750295432707,-150.0,0.00019246,2]
[366507278,1750295432718,-150.0,0.00020121,2]
[366507279,1750295432727,-150.0,0.00020995,2]
[366507281,1750295432737,-152.0,0.000216,2]
[366507283,1750295432746,-152.0,0.000216,2]
[366507285,1750295432756,-152.0,0.000216,2]
[366507287,1750295432765,-150.0,0.0002187,2]
[366507289,1750295432775,-300.0,0.00021916,2]
[366507291,1750295432784,-775.68287573,0.00021917,6]
[366507293,1750295432794,-524.3,0.00021917,6]
[366507295,1750295432803,-460.0,0.00021917,6]
[366507297,1750295432813,-460.0,0.00021917,6]